Workbook

Sheet Normal oversigt
A7: Elev type:
A8: Feriepenge | B8: 0.125 | E8: Søgnehelligdagsbet. | G8: 0.09
A9: Løn | B9: =37*144.2 -> 5335.4 | C9: Kr/uge | E9: Fritvalgskonto | G9: 0.02
A11: Forsikring per elev | B11: 4600 | C11: kr/år | E11: Bogpakke 1. skoleoph. | G11: 1500 | H11: kr.
A12: Befordringsgodtgørelse | B12: 100 | C12: kr/uge* | E12: Antal uger praktik | G12: =IF(Beregninger!C41=8,0,Beregninger!C41) -> 122 | H12: Uger
A13: Udgifter Skolehjem | B13: 500 | C13: kr/uge | E13: Antal uger skole | G13: =Beregninger!C36 -> 34 | H13: Uger
A14: Refusion Skolehjem | B14: 500 | C14: kr/uge | E14: Pension | G14: 0.08
A15: Løntilskud (over 25 år) | B15: =Beregninger!C43 -> 30 | C15: kr/time** | E15: Refusion i skole per. | G15: 5100 | H15: kr/uge
E19: Refusion/tilskud | G19: Udgifter
A20: Lønudgift praktik og skole periode | G20: =(Beregninger!C41+Beregninger!C36)*Beregninger!C42 -> 16224
A21: Ferietillæg | G21: =G20*B8 -> 2028
A22: Pension | G22: =G20*Beregninger!C43 -> 486720
A23: Refusion for skole periode | E23: =Beregninger!C36*Beregninger!C37 -> 1360
A24: Forsikring | G24: =B11 -> 4600
A25: Udgifter skolehjem | G25: =Beregninger!C36*B13 -> 17000
A26: Refusion skolehjem | E26: =Beregninger!C36*B14 -> 17000
A27: Løntilskud for vokse over 25 år EUV 2 og 3 elever | E27: =B15*Beregninger!C41*37 -> 135420
A28: Befordringsgodtgørelse | G28: =B12*Beregninger!C36 -> 3400
A29: Bogpakke | G29: =VLOOKUP(Beregninger!B3,Beregninger!A5:J28,12, FALSE) -> 
C30: I alt kr.: | E30: =SUM(E20:F29) -> 153780 | G30: =SUM(G20:H29) -> 
C31: Periodens udgift | G31: =G30-E30 -> 
A32: Bruttoudgift 1. år | F32: =((Beregninger!G32*(1+G8+G9+B8)))*(1+G14)+(((Beregninger!G32*G8)*B8)*G14)+B11+(B12*Beregninger!C32)+G11 -> 320630.9687
A33: Tilskud 1. år | F33: =(G15*Beregninger!C32)+((Beregninger!D37-8)*37)*B15 -> 96720
A34: Nettoudgift 1. år | F34: =F32-F33 -> 223910.9687
A35: Total udgift i skoletid minus refusion | F35: =(((G20+G21+G22)/(Beregninger!C41+Beregninger!C36))*Beregninger!C36)-E23+G28+G29 -> 
A36: Gns. per måned 1. år | F36: =F34/12 -> 18659.24739
A37: Gns. per time 1. år | F37: =F36/160.33 -> 116.3802619
A38: Gns. udgift per måned fordelt på praktikperiode alt incl. | F38: =(F34/(Beregninger!C37-8))*4.33 -> 30297.95295
A39: Gns. udgift per time fordelt på praktikperiode alt incl. | F39: =F38/160.33 -> 188.9724503
A41: Bruttoudgift 2. år | F41: =IF(((Beregninger!G33*(1+G8+G9+B8)))*(1+G14)+(((Beregninger!G33*G8)*B8)*G14)+B11+(B12*Beregninger!C33)<0,0,((Beregninger!G33*(1+G8+G9+B8)))*(1+G14)+(((Beregninger!G33*G8)*B8)*G14)+B11+(B12*Beregninger!C33)) -> 319130.9687
A42: Tilskud 2. år | F42: =(G15*Beregninger!C33)+((Beregninger!D38-8)*37)*B15 -> 96720
A43: Nettoudgift 2. år | F43: =F41-F42 -> 222410.9687
A44: Gns. per måned 2. år | F44: =F43/12 -> 18534.24739
A45: Gns. per time 2. år | F45: =F44/160.33 -> 115.6006199
A46: Gns. udgift per måned fordelt på praktikperiode alt incl. | F46: =(F43/(Beregninger!C38-8))*4.33 -> 30094.9842
A47: Gns. udgift per time fordelt på praktikperiode alt incl. | F47: =F46/160.33 -> 187.7065066
A49: Bruttoudgift 3. år | F49: =IF(((Beregninger!G34*(1+G8+G9+B8)))*(1+G14)+(((Beregninger!G34*G8)*B8)*G14)+B11+(B12*Beregninger!C34)<0,0,((Beregninger!G34*(1+G8+G9+B8)))*(1+G14)+(((Beregninger!G34*G8)*B8)*G14)+B11+(B12*Beregninger!C34)) -> 318930.9687
A50: Tilskud 3. år | F50: =(G15*Beregninger!C34)+((Beregninger!D39-8)*37)*B15 -> 68760
A51: Nettoudgift 3. år | F51: =F49-F50 -> 250170.9687
A52: Gns. per måned 3. år | F52: =F51/12 -> 20847.58073
A53: Gns. per time 3. år | F53: =F52/160.33 -> 130.0291943
A54: Gns. udgift per måned fordelt på praktikperiode alt incl. | F54: =(F51/(Beregninger!C39-8))*4.33 -> 31860.00866
A55: Gns. udgift per time fordelt på praktikperiode alt incl. | F55: =F54/160.33 -> 198.715204
A57: Bruttoudgift 4. år | F57: =IF(((Beregninger!G35*(1+G8+G9+B8)))*(1+G14)+(((Beregninger!G35*G8)*B8)*G14)+B11+(B12*Beregninger!C35)<=0,0,((Beregninger!G35*(1+G8+G9+B8)))*(1+G14)+(((Beregninger!G35*G8)*B8)*G14)+B11+(B12*Beregninger!C35)) -> 0
A58: Tilskud 4. år | F58: =IF((G15*Beregninger!C35)+((Beregninger!D40-8)*37)*B15<=0,0,(G15*Beregninger!C35)+((Beregninger!D40-8)*37)*B15) -> 0
A59: Nettoudgift 4. år | F59: =F57-F58 -> 0
A60: Gns. per måned 4. år OBS kun 6 mnd. | F60: =F59/6 -> 0
A61: Gns. per time 4. år | F61: =F60/160.33 -> 0
A62: Gns. udgift per måned fordelt på praktikperiode alt incl. | F62: =(F59/(Beregninger!C40-4))*4.33 -> 0
A63: Gns. udgift per time fordelt på praktikperiode alt incl. | F63: =F62/160.33 -> 0
A66: Gennemsnitspris per time arbejde | F66: =((F34+F43+F51+F59)/(G12-IF(F59>0,28,24)))/37 -> 192.0829857
A67: Forudsætninger:
A68: *Befordringsgodtgørelse 80% af billigste offentlig transport refunderet estimat.
A69: AUB refusion er beregnet med 2018 tal for alle år.
A70: Ugeløn og pension under skole og praktik ophold er beregnet for hele året selvom dette reguleres pr. 1. marts
A71: Krav til forsikring iht overenskomst.
A72: EUV - ErhvervsUddannelse for Voksne.
A73: **Voksne der er fyldt 25 år, og indgår under reglerne for voksne, der tager en erhvervsuddannelse.
A74: Der er ikke beregnet tilskud ved ferie og søgnehelligdage. Har virksomheden udgifter til ferie er der tilskud til ferie.
A75: Løntilskud forklaring: | B75: 30 eller 40 kr med anden baggrund i hele praktik perioden
B76: 30 kr i op til de første 2 år af praktik perioden
A77: Ny mesterlære: Eleven er det første uddannelsesår i praktik.
A78: Skurpenge:
A79: Hvis forsvarligt skur- eller opholdsrum ikke anvises, ydes et dagligt beløb på 50,55 kr.
A80: regnet fra den lønningsuge hvor kravet stilles.
A81: Pr. 1. marts 2018 udgør satsen 53,02 kr. og pr. 1. marts 2019 er satsen 53,02 kr.
A82: Pensionsbidraget er beregnet af den samlede ferieberettigede løn, søgnehelligdags- og fridagsbetaling,
A83: fritvalgsopsparing samt feriepenge.
A84: Der er beregnet pension og ferie af søgnehelligdags- og fridagsbetaling.
A85: Gns. udgift per måned fordelt på praktikperiode alt incl. Det vil sige per år er fratrukkekt 6 ugers ferie og 2 ugers
A86: søgenhelligdage og fridage.
A87: Evt. udgift til studietur 3000 kr.
A88: For elever der ikke er i ny mesterlære, er det forudsat at grundforløbet er gennemført,
A89: inden der indgås uddannelsesaftale
A90: OBS Hvis din voksenelev gennemfører sin erhvervsuddannelse uden forudgående grundforløb og praktik,
A91: har du ført ret til lønrefusion, når eleven har været beskæftiget i virksomheden i tre sammenhængende måneder.
A92: Er eleven ansat på deltid, skal den forudgående beskæftigelse svare til tre måneders fuldtidsbeskæftigelse,
A93: før du kan få udbetalt lønrefusion.
A94: Timelønssatsen er sat til 144,20 kr.

Sheet Beregninger
B3: 3
B4: Elev type | C4: Varighed skole år 1 (uger) | D4: Varighed skole år 2 (uger) | E4: Varighed skole år 3 (uger) | F4: Varighed skole år 4 (uger) | G4: Varighed praktik år 1 (uger) | H4: Varighed praktik år 2 (uger) | I4: Varighed praktik år 3 (uger) | J4: Varighed praktik år 4 (uger) | K4: Løntilskud praktik | L4: løntilskud (uger)
A5: 1 | B5: EUV 1 Mindst 2 års Erhvervs erfaring | C5: 32 | D5: 0 | E5: 0 | F5: 0 | G5: 8 | H5: 0 | I5: 0 | J5: 0 | K5: 0 | L5: 0
A6: 2 | B6: EUV 2 Mindre end 2 års relevant erhvervserfaring eller anden fuldført uddannelse - ingen tilskud | C6: 12 | D6: 12 | E6: 10 | F6: 0 | G6: 40 | H6: 40 | I6: 42 | J6: 0 | K6: 0 | L6: 122
A7: 3 | B7: EUV 2 Mindre end 2 års relevant erhvervserfaring eller anden fuldført uddannelse - 30 kr i 2 år praktik | C7: 12 | D7: 12 | E7: 10 | F7: 0 | G7: 40 | H7: 40 | I7: 42 | J7: 0 | K7: 30 | L7: 104
A8: 4 | B8: EUV 2 Mindre end 2 års relevant erhvervserfaring eller anden fuldført uddannelse - 30 kr hele praktikperiode | C8: 12 | D8: 12 | E8: 10 | F8: 0 | G8: 40 | H8: 40 | I8: 42 | J8: 0 | K8: 30 | L8: 122
A9: 5 | B9: EUV 2 Mindre end 2 års relevant erhvervserfaring eller anden fuldført uddannelse - 40 kr hele praktikperiode | C9: 12 | D9: 12 | E9: 10 | F9: 0 | G9: 40 | H9: 40 | I9: 42 | J9: 0 | K9: 40 | L9: 122
A10: 6 | B10: EUV 3 Ingen relevant erhvervserfaring eller anden fuldført uddannelse - ingen tilskud | C10: 12 | D10: 12 | E10: 12 | F10: 0 | G10: 40 | H10: 40 | I10: 40 | J10: 0 | K10: 0 | L10: 120
A11: 7 | B11: EUV 3 Ingen relevant erhvervserfaring eller anden fuldført uddannelse - 30 kr i 2 år praktik | C11: 12 | D11: 12 | E11: 12 | F11: 0 | G11: 40 | H11: 40 | I11: 40 | J11: 0 | K11: 30 | L11: 104
A12: 8 | B12: EUV 3 Ingen relevant erhvervserfaring eller anden fuldført uddannelse - 30 kr hele praktikperiode | C12: 12 | D12: 12 | E12: 12 | F12: 0 | G12: 40 | H12: 40 | I12: 40 | J12: 0 | K12: 30 | L12: 120
A13: 9 | B13: EUV 3 Ingen relevant erhvervserfaring eller anden fuldført uddannelse - 40 kr hele praktikperiode | C13: 12 | D13: 12 | E13: 12 | F13: 0 | G13: 40 | H13: 40 | I13: 40 | J13: 0 | K13: 40 | L13: 120
A14: 10 | B14: EUV 2 Ny mesterlære Mindre end 2 års relevant erhvervserfaring eller anden fuldført uddannelse - ingen tilskud | C14: 4 | D14: 12 | E14: 12 | F14: 10 | G14: 48 | H14: 40 | I14: 40 | J14: 16 | K14: 0 | L14: 144
A15: 11 | B15: EUV 2 Ny mesterlære Mindre end 2 års relevant erhvervserfaring eller anden fuldført uddannelse - 30 kr i 2 år praktik | C15: 4 | D15: 12 | E15: 12 | F15: 10 | G15: 48 | H15: 40 | I15: 40 | J15: 16 | K15: 30 | L15: 104
A16: 12 | B16: EUV 2 Ny mesterlære Mindre end 2 års relevant erhvervserfaring eller anden fuldført uddannelse - 30 kr hele praktikperiode | C16: 4 | D16: 12 | E16: 12 | F16: 10 | G16: 48 | H16: 40 | I16: 40 | J16: 16 | K16: 30 | L16: 144
A17: 13 | B17: EUV 2 Ny mesterlære Mindre end 2 års relevant erhvervserfaring eller anden fuldført uddannelse - 40 kr hele praktikperiode | C17: 4 | D17: 12 | E17: 12 | F17: 10 | G17: 48 | H17: 40 | I17: 40 | J17: 16 | K17: 40 | L17: 144
A18: 14 | B18: EUV 3 Ny mesterlære Ingen relevant erhvervserfaring eller anden fuldført uddannelse - ingen tilskud | C18: 4 | D18: 12 | E18: 12 | F18: 12 | G18: 48 | H18: 40 | I18: 40 | J18: 18 | K18: 0 | L18: 146
A19: 15 | B19: EUV 3 Ny mesterlære Ingen relevant erhvervserfaring eller anden fuldført uddannelse - 30 kr i 2 år praktik | C19: 4 | D19: 12 | E19: 12 | F19: 12 | G19: 48 | H19: 40 | I19: 40 | J19: 18 | K19: 30 | L19: 104
A20: 16 | B20: EUV 3 Ny mesterlære Ingen relevant erhvervserfaring eller anden fuldført uddannelse - 30 kr hele praktikperiode | C20: 4 | D20: 12 | E20: 12 | F20: 12 | G20: 48 | H20: 40 | I20: 40 | J20: 18 | K20: 30 | L20: 146
A21: 17 | B21: EUV 3 Ny mesterlære Ingen relevant erhvervserfaring eller anden fuldført uddannelse - 40 kr hele praktikperiode | C21: 4 | D21: 12 | E21: 12 | F21: 12 | G21: 48 | H21: 40 | I21: 40 | J21: 18 | K21: 40 | L21: 146
A22: 18
A23: 19
A24: 20
A25: 21
A26: 22
A27: 23
A28: 24
A29: 25
D31: uger med tilskud | G31: Råløn
B32: 1. år skole | C32: =VLOOKUP(Beregninger!B3,Beregninger!A5:L29,3, FALSE) -> 12 | F32: 1. år | G32: =(C32+C37-8)*'Normal oversigt'!B9 -> 234757.6
B33: 2. år skole | C33: =VLOOKUP(Beregninger!B3,Beregninger!A5:L29,4, FALSE) -> 12 | F33: 2. år | G33: =(C33+C38-8)*'Normal oversigt'!B9 -> 234757.6
B34: 3. år skole | C34: =VLOOKUP(Beregninger!B3,Beregninger!A5:L29,5, FALSE) -> 10 | F34: 3. år | G34: =(C34+C39-8)*'Normal oversigt'!B9 -> 234757.6
B35: 4. år skole | C35: =VLOOKUP(Beregninger!B3,Beregninger!A5:L29,6, FALSE) -> 0 | F35: 4. år | G35: =(C35+C40-4)*'Normal oversigt'!B9 -> -21341.6
B36: Valgt varighed skole | C36: =(VLOOKUP(Beregninger!B3,Beregninger!A5:J29,3, FALSE)+VLOOKUP(Beregninger!B3,Beregninger!A5:J29,4, FALSE)+VLOOKUP(Beregninger!B3,Beregninger!A5:J29,5, FALSE)+VLOOKUP(Beregninger!B3,Beregninger!A5:J29,6, FALSE)) -> 34
B37: 1. år praktik | C37: =VLOOKUP(Beregninger!B3,Beregninger!A5:L29,7, FALSE) -> 40 | D37: =IF(C42-C37>=0,C37,C37-((C37)-(C42))) -> 40
B38: 2. år praktik | C38: =VLOOKUP(Beregninger!B3,Beregninger!A5:L29,8, FALSE) -> 40 | D38: =IF(C42-(C37+C38)>=0,C38,C38-((C37+C38)-(C42))) -> 40
B39: 3. år praktik | C39: =VLOOKUP(Beregninger!B3,Beregninger!A5:L29,9, FALSE) -> 42 | D39: =IF(C42-(C37+C38+C39)>=0,C39,C39-((C37+C38+C39)-(C42))) -> 24
B40: 4. år praktik | C40: =VLOOKUP(Beregninger!B3,Beregninger!A5:L29,10, FALSE) -> 0 | D40: =IF(C42-(C37+C38+C39+C40)>=0,C40,C40-((C37+C38+C39+C40)-(C42))) -> -18
B41: Valgt varighed praktik | C41: =(VLOOKUP(Beregninger!B3,Beregninger!A5:J29,7, FALSE)+VLOOKUP(Beregninger!B3,Beregninger!A5:J29,8, FALSE)+VLOOKUP(Beregninger!B3,Beregninger!A5:J29,9, FALSE)+VLOOKUP(Beregninger!B3,Beregninger!A5:J29,10, FALSE)) -> 122
B42: Varighed løntilskud | C42: =VLOOKUP(Beregninger!B3,Beregninger!A5:L29,12, FALSE) -> 104
B43: Løntilskud beløb | C43: =VLOOKUP(Beregninger!B3,Beregninger!A5:L29,11, FALSE) -> 30
